[Event "Late-Titled-Tuesday-Blitz-August-29-2023"]
[Site "Chess.com"]
[Date "2023.08.29"]
[Round "3"]
[White "MITerryble"]
[Black "dedpihto_v_kozhanom_palto"]
[Result "1-0"]
[WhiteElo "2927"]
[BlackElo "2694"]
[TimeControl "180+1"]
[EndTime "14:29:18 PDT"]
[Termination "MITerryble won by resignation"]

1. e4 {[%clk 0:02:59.3]} 1... g6 {[%clk 0:02:52.3]} 2. d4 {[%clk 0:02:59.1]}
2... Bg7 {[%clk 0:02:53]} 3. Nf3 {[%clk 0:02:55.9]} 3... d6 {[%clk 0:02:53.5]}
4. Bc4 {[%clk 0:02:55.8]} 4... Nc6 {[%clk 0:02:53.4]} 5. O-O {[%clk 0:02:54.1]}
5... Nf6 {[%clk 0:02:54]} 6. e5 {[%clk 0:02:44.5]} 6... dxe5 {[%clk 0:02:46.8]}
7. dxe5 {[%clk 0:02:44.7]} 7... Qxd1 {[%clk 0:02:47.5]} 8. Rxd1 {[%clk
0:02:45.2]} 8... Ng4 {[%clk 0:02:47.9]} 9. e6 {[%clk 0:02:45.6]} 9... Bxe6
{[%clk 0:02:46.5]} 10. Bxe6 {[%clk 0:02:44.7]} 10... fxe6 {[%clk 0:02:47.4]} 11.
c3 {[%clk 0:02:37.5]} 11... O-O {[%clk 0:02:43.7]} 12. Na3 {[%clk 0:02:28]}
12... Rad8 {[%clk 0:02:33.9]} 13. Bg5 {[%clk 0:02:22.8]} 13... h6 {[%clk
0:02:33.6]} 14. Bh4 {[%clk 0:02:22.9]} 14... Bf6 {[%clk 0:02:24.7]} 15. Bg3
{[%clk 0:02:22.8]} 15... Nge5 {[%clk 0:02:21]} 16. Nxe5 {[%clk 0:02:08.6]} 16...
Bxe5 {[%clk 0:02:16.4]} 17. Nb5 {[%clk 0:02:07.7]} 17... Bxg3 {[%clk 0:01:19.4]}
18. hxg3 {[%clk 0:02:08.6]} 18... a6 {[%clk 0:01:19.2]} 19. Na3 {[%clk
0:01:58.6]} 19... Rxd1+ {[%clk 0:01:17.4]} 20. Rxd1 {[%clk 0:01:59.5]} 20... Rd8
{[%clk 0:01:17.4]} 21. Re1 {[%clk 0:01:58.9]} 21... Kf7 {[%clk 0:01:16.1]} 22.
Kf1 {[%clk 0:01:58.1]} 22... Rd2 {[%clk 0:01:09.6]} 23. Nc4 {[%clk 0:01:57.7]}
23... Rc2 {[%clk 0:01:10]} 24. Rb1 {[%clk 0:01:57.8]} 24... b5 {[%clk
0:01:08.1]} 25. Ne3 {[%clk 0:01:56.7]} 25... Rd2 {[%clk 0:01:08.7]} 26. Ke1
{[%clk 0:01:57.1]} 26... Rd8 {[%clk 0:01:08.3]} 27. Ke2 {[%clk 0:01:47.6]} 27...
h5 {[%clk 0:01:08.7]} 28. g4 {[%clk 0:01:45.5]} 28... hxg4 {[%clk 0:01:02.4]}
29. Nxg4 {[%clk 0:01:46.4]} 29... e5 {[%clk 0:01:03.1]} 30. Rh1 {[%clk
0:01:44.6]} 30... Kg7 {[%clk 0:00:57.7]} 31. Ne3 {[%clk 0:01:31.6]} 31... e6
{[%clk 0:00:50.6]} 32. g3 {[%clk 0:01:24]} 32... a5 {[%clk 0:00:48.4]} 33. Rh4
{[%clk 0:01:21.5]} 33... Rd7 {[%clk 0:00:45.5]} 34. a4 {[%clk 0:01:20.7]} 34...
b4 {[%clk 0:00:45.3]} 35. Rc4 {[%clk 0:01:20.9]} 35... Rd6 {[%clk 0:00:44]} 36.
Rc5 {[%clk 0:01:21.1]} 36... bxc3 {[%clk 0:00:42.6]} 37. bxc3 {[%clk 0:01:22]}
37... Ne7 {[%clk 0:00:36]} 38. Rxc7 {[%clk 0:01:11.5]} 38... Kf8 {[%clk
0:00:35.9]} 39. Nc4 {[%clk 0:01:04.8]} 39... Rd5 {[%clk 0:00:28.7]} 40. Nb6
{[%clk 0:00:56.9]} 40... Rd6 {[%clk 0:00:22.3]} 41. Nd7+ {[%clk 0:00:57]} 41...
Ke8 {[%clk 0:00:22.1]} 42. Nxe5 {[%clk 0:00:57.6]} 42... Rb6 {[%clk 0:00:22.2]}
43. Ra7 {[%clk 0:00:45.1]} 43... Nd5 {[%clk 0:00:22.7]} 44. c4 {[%clk 0:00:33]}
44... Rb2+ {[%clk 0:00:23]} 45. Kf3 {[%clk 0:00:32]} 45... Rb3+ {[%clk
0:00:17.1]} 46. Kg2 {[%clk 0:00:31.7]} 46... Nc3 {[%clk 0:00:15.5]} 47. Rxa5
{[%clk 0:00:31.3]} 47... Rb2 {[%clk 0:00:14.6]} 48. Ra8+ {[%clk 0:00:24.6]}
48... Ke7 {[%clk 0:00:14.5]} 49. Nxg6+ {[%clk 0:00:25.5]} 49... Kf6 {[%clk
0:00:14.2]} 50. Nf4 {[%clk 0:00:24.9]} 50... Ne4 {[%clk 0:00:12.1]} 51. Nh3
{[%clk 0:00:24.7]} 51... Rc2 {[%clk 0:00:11.7]} 52. a5 {[%clk 0:00:23.1]} 52...
Rxc4 {[%clk 0:00:11.5]} 53. a6 {[%clk 0:00:23.7]} 53... Ra4 {[%clk 0:00:12.1]}
54. a7 {[%clk 0:00:22.9]} 54... Kg7 {[%clk 0:00:10]} 55. Nf4 {[%clk 0:00:23.2]}
55... Nc5 {[%clk 0:00:06.9]} 56. Nh5+ {[%clk 0:00:22.5]} 56... Kh7 {[%clk
0:00:05.1]} 57. Nf6+ {[%clk 0:00:22.8]} 57... Kg7 {[%clk 0:00:05.9]} 58. Rg8+
{[%clk 0:00:22.4]} 58... Kxf6 {[%clk 0:00:06.8]} 59. a8=Q {[%clk 0:00:23.3]}
59... Rxa8 {[%clk 0:00:07.6]} 60. Rxa8 {[%clk 0:00:24.2]} 60... Nd3 {[%clk
0:00:07.5]} 61. Ra4 {[%clk 0:00:21.3]} 61... Nc5 {[%clk 0:00:07.2]} 62. Rc4
{[%clk 0:00:21.4]} 62... Nd3 {[%clk 0:00:07.5]} 63. Rd4 {[%clk 0:00:20]} 63...
Ne5 {[%clk 0:00:07.2]} 64. f4 {[%clk 0:00:19]} 64... Nc6 {[%clk 0:00:07.3]} 65.
Rc4 {[%clk 0:00:19.4]} 65... Ne7 {[%clk 0:00:07.9]} 66. Kf3 {[%clk 0:00:19]}
66... Nf5 {[%clk 0:00:08.3]} 67. g4 {[%clk 0:00:18.4]} 67... Nd6 {[%clk
0:00:06.7]} 68. Rc6 {[%clk 0:00:18.5]} 68... Nf7 {[%clk 0:00:07.2]} 69. Ke4
{[%clk 0:00:16.6]} 69... Ke7 {[%clk 0:00:07.8]} 70. Rc7+ {[%clk 0:00:16.4]}
70... Kf6 {[%clk 0:00:07.8]} 71. Rxf7+ {[%clk 0:00:15.5]} 71... Kxf7 {[%clk
0:00:08.7]} 72. Ke5 {[%clk 0:00:15.7]} 72... Ke7 {[%clk 0:00:09.5]} 73. g5
{[%clk 0:00:16]} 73... Kf7 {[%clk 0:00:10]} 74. Kd6 {[%clk 0:00:16.6]} 74... e5
{[%clk 0:00:09.8]} 1-0

[Event "Late-Titled-Tuesday-Blitz-August-29-2023"]
[Site "Chess.com"]
[Date "2023.08.29"]
[Round "3"]
[White "dodoucb"]
[Black "Orest_Vovk"]
[Result "1/2-1/2"]
[WhiteElo "2432"]
[BlackElo "2584"]
[TimeControl "180+1"]
[EndTime "14:29:19 PDT"]
[Termination "Game drawn by repetition"]

1. Nf3 {[%clk 0:02:59]} 1... g6 {[%clk 0:02:59.3]} 2. c4 {[%clk 0:02:58]} 2...
Bg7 {[%clk 0:03:00.2]} 3. Nc3 {[%clk 0:02:58.2]} 3... Nf6 {[%clk 0:03:00.6]} 4.
d4 {[%clk 0:02:58.4]} 4... O-O {[%clk 0:03:01.5]} 5. e4 {[%clk 0:02:58]} 5... d6
{[%clk 0:03:01.9]} 6. Be2 {[%clk 0:02:58.4]} 6... a5 {[%clk 0:03:02.1]} 7. O-O
{[%clk 0:02:58.7]} 7... Na6 {[%clk 0:03:02.5]} 8. Be3 {[%clk 0:02:58.4]} 8... c6
{[%clk 0:03:02.2]} 9. e5 {[%clk 0:02:53.5]} 9... Nd7 {[%clk 0:03:00.7]} 10. exd6
{[%clk 0:02:48.9]} 10... exd6 {[%clk 0:03:00.4]} 11. Qd2 {[%clk 0:02:49.7]}
11... Re8 {[%clk 0:02:59.2]} 12. Rfe1 {[%clk 0:02:49.8]} 12... Nf8 {[%clk
0:02:56.9]} 13. Bg5 {[%clk 0:02:40.2]} 13... Bf6 {[%clk 0:02:48.4]} 14. h3
{[%clk 0:02:30.9]} 14... Bf5 {[%clk 0:02:44.4]} 15. a3 {[%clk 0:02:25.9]} 15...
Nc7 {[%clk 0:02:40.6]} 16. Bf1 {[%clk 0:02:25]} 16... Bxg5 {[%clk 0:02:38.8]}
17. Nxg5 {[%clk 0:02:23.9]} 17... Qf6 {[%clk 0:02:33]} 18. Nge4 {[%clk
0:02:15.3]} 18... Bxe4 {[%clk 0:02:31]} 19. Nxe4 {[%clk 0:02:16.2]} 19... Qd8
{[%clk 0:02:25.6]} 20. Qf4 {[%clk 0:02:14.6]} 20... Re6 {[%clk 0:02:20.9]} 21.
Ng5 {[%clk 0:02:06.8]} 21... Rf6 {[%clk 0:02:20.6]} 22. Qh4 {[%clk 0:01:58.8]}
22... Rf5 {[%clk 0:02:14.7]} 23. f4 {[%clk 0:01:57.4]} 23... Qf6 {[%clk
0:02:08.5]} 24. Rad1 {[%clk 0:01:35.1]} 24... Rxf4 {[%clk 0:02:05.9]} 25. Qg3
{[%clk 0:01:35.1]} 25... Rxd4 {[%clk 0:01:56]} 26. Ne4 {[%clk 0:01:31.9]} 26...
Qe5 {[%clk 0:01:43.9]} 27. Qf3 {[%clk 0:01:04.8]} 27... Rxd1 {[%clk 0:01:40.2]}
28. Rxd1 {[%clk 0:01:02]} 28... d5 {[%clk 0:01:33.1]} 29. Nc5 {[%clk 0:00:56]}
29... b6 {[%clk 0:01:20.4]} 30. Nd3 {[%clk 0:00:49.9]} 30... Qe4 {[%clk
0:01:18.4]} 31. Qxe4 {[%clk 0:00:40.6]} 31... dxe4 {[%clk 0:01:18.1]} 32. Ne5
{[%clk 0:00:41.5]} 32... c5 {[%clk 0:01:06.8]} 33. Rd6 {[%clk 0:00:40.3]} 33...
Re8 {[%clk 0:01:01.9]} 34. Ng4 {[%clk 0:00:36.5]} 34... Re6 {[%clk 0:00:49]} 35.
Nf6+ {[%clk 0:00:28.3]} 35... Kg7 {[%clk 0:00:42.9]} 36. Rxe6 {[%clk 0:00:28]}
36... Nfxe6 {[%clk 0:00:41.5]} 37. Nxe4 {[%clk 0:00:28.9]} 37... Nd4 {[%clk
0:00:39.1]} 38. Nc3 {[%clk 0:00:28.8]} 38... Kf6 {[%clk 0:00:31.2]} 39. Na4
{[%clk 0:00:28.2]} 39... Na8 {[%clk 0:00:28.7]} 40. Kf2 {[%clk 0:00:28.5]} 40...
Ke5 {[%clk 0:00:28]} 41. g3 {[%clk 0:00:29]} 41... Kd6 {[%clk 0:00:25.3]} 42.
Bg2 {[%clk 0:00:29.1]} 42... Nc6 {[%clk 0:00:25.4]} 43. Ke3 {[%clk 0:00:24.3]}
43... Nc7 {[%clk 0:00:14.8]} 44. Nxb6 {[%clk 0:00:22.4]} 44... Ne5 {[%clk
0:00:15.2]} 45. Bf1 {[%clk 0:00:16]} 45... f5 {[%clk 0:00:13.7]} 46. Kf4 {[%clk
0:00:15.3]} 46... Ne6+ {[%clk 0:00:12.4]} 47. Ke3 {[%clk 0:00:15.8]} 47... Nd4
{[%clk 0:00:12.6]} 48. Kd2 {[%clk 0:00:12.6]} 48... g5 {[%clk 0:00:12.4]} 49.
Kc3 {[%clk 0:00:12.1]} 49... f4 {[%clk 0:00:12.3]} 50. gxf4 {[%clk 0:00:12.7]}
50... gxf4 {[%clk 0:00:13.2]} 51. b4 {[%clk 0:00:13.5]} 51... axb4+ {[%clk
0:00:13.6]} 52. axb4 {[%clk 0:00:14.4]} 52... Ne6 {[%clk 0:00:10.6]} 53. b5
{[%clk 0:00:12.7]} 53... f3 {[%clk 0:00:10.1]} 54. Nd5 {[%clk 0:00:13.2]} 54...
Nd4 {[%clk 0:00:09.5]} 55. Ne3 {[%clk 0:00:11.2]} 55... h5 {[%clk 0:00:07.3]}
56. h4 {[%clk 0:00:09.2]} 56... Ng6 {[%clk 0:00:07]} 57. Kd3 {[%clk 0:00:05.8]}
57... Nxh4 {[%clk 0:00:06.8]} 58. Ke4 {[%clk 0:00:06.7]} 58... Ng6 {[%clk
0:00:05]} 59. Nf5+ {[%clk 0:00:04.3]} 59... Nxf5 {[%clk 0:00:04.3]} 60. Kxf5
{[%clk 0:00:05.2]} 60... Ne5 {[%clk 0:00:04.7]} 61. Kg5 {[%clk 0:00:04]} 61...
Nd7 {[%clk 0:00:03]} 62. Kxh5 {[%clk 0:00:04]} 62... Ke5 {[%clk 0:00:03.7]} 63.
Bh3 {[%clk 0:00:02.5]} 63... Nb6 {[%clk 0:00:02.5]} 64. Kg4 {[%clk 0:00:03.4]}
64... Ke4 {[%clk 0:00:03]} 65. Bf1 {[%clk 0:00:03]} 65... Ke3 {[%clk 0:00:03.9]}
66. Kg3 {[%clk 0:00:03.4]} 66... f2 {[%clk 0:00:04.1]} 67. Kg2 {[%clk
0:00:03.9]} 67... Na4 {[%clk 0:00:04.2]} 68. Kg3 {[%clk 0:00:04.3]} 68... Nb6
{[%clk 0:00:04.5]} 69. Kg2 {[%clk 0:00:04.7]} 69... Nd7 {[%clk 0:00:04.6]} 70.
Kg3 {[%clk 0:00:04.6]} 70... Nb6 {[%clk 0:00:04.5]} 1/2-1/2

[Event "Late-Titled-Tuesday-Blitz-August-29-2023"]
[Site "Chess.com"]
[Date "2023.08.29"]
[Round "3"]
[White "Korchmar_Vasiliy"]
[Black "ckgchess"]
[Result "1/2-1/2"]
[WhiteElo "2689"]
[BlackElo "2901"]
[TimeControl "180+1"]
[EndTime "14:29:30 PDT"]
[Termination "Game drawn by repetition"]

1. e4 {[%clk 0:03:00]} 1... c6 {[%clk 0:03:00.4]} 2. d4 {[%clk 0:02:59.6]} 2...
d5 {[%clk 0:03:01.3]} 3. exd5 {[%clk 0:03:00.4]} 3... cxd5 {[%clk 0:03:02.2]} 4.
Bd3 {[%clk 0:02:59.5]} 4... Nf6 {[%clk 0:03:03.1]} 5. h3 {[%clk 0:02:58.2]} 5...
Nc6 {[%clk 0:03:03.2]} 6. c3 {[%clk 0:02:55.3]} 6... e5 {[%clk 0:03:03.4]} 7.
dxe5 {[%clk 0:02:54.7]} 7... Nxe5 {[%clk 0:03:04.3]} 8. Qe2 {[%clk 0:02:54.6]}
8... Ne4 {[%clk 0:02:54.5]} 9. Bb5+ {[%clk 0:02:52.9]} 9... Bd7 {[%clk
0:02:43.5]} 10. Nf3 {[%clk 0:02:52.7]} 10... Bxb5 {[%clk 0:02:18]} 11. Qxb5+
{[%clk 0:02:53.6]} 11... Qd7 {[%clk 0:02:18.6]} 12. Qxd7+ {[%clk 0:02:53.4]}
12... Nxd7 {[%clk 0:02:19.5]} 13. Be3 {[%clk 0:02:53.4]} 13... Bc5 {[%clk
0:02:15.5]} 14. Bxc5 {[%clk 0:02:51.6]} 14... Ndxc5 {[%clk 0:02:16.4]} 15. O-O
{[%clk 0:02:48.2]} 15... O-O-O {[%clk 0:02:16.5]} 16. Nbd2 {[%clk 0:02:45.9]}
16... Rhe8 {[%clk 0:02:09.8]} 17. Nb3 {[%clk 0:02:19.6]} 17... Nd3 {[%clk
0:02:07]} 18. Rab1 {[%clk 0:02:19.6]} 18... Kb8 {[%clk 0:02:01.5]} 19. Nc1
{[%clk 0:02:14.6]} 19... Nf4 {[%clk 0:01:54.1]} 20. Rd1 {[%clk 0:02:14.2]} 20...
Nc5 {[%clk 0:01:18.2]} 21. Nb3 {[%clk 0:02:07.7]} 21... Ne4 {[%clk 0:01:05.9]}
22. Kf1 {[%clk 0:01:55.3]} 22... g5 {[%clk 0:01:04.9]} 23. Rd4 {[%clk
0:01:42.9]} 23... h5 {[%clk 0:00:59.4]} 24. h4 {[%clk 0:01:20.7]} 24... g4
{[%clk 0:00:50.6]} 25. Ng5 {[%clk 0:01:20.4]} 25... f6 {[%clk 0:00:28.6]} 26.
Nxe4 {[%clk 0:01:10.1]} 26... Rxe4 {[%clk 0:00:26.6]} 27. Rbd1 {[%clk
0:01:02.8]} 27... Rde8 {[%clk 0:00:27]} 28. g3 {[%clk 0:00:58.6]} 28... Nh3
{[%clk 0:00:26]} 29. Rxd5 {[%clk 0:00:48.3]} 29... Re2 {[%clk 0:00:26.4]} 30.
R5d2 {[%clk 0:00:48.6]} 30... R2e5 {[%clk 0:00:26.8]} 31. Nc1 {[%clk 0:00:24.3]}
31... f5 {[%clk 0:00:26.7]} 32. Nd3 {[%clk 0:00:24.5]} 32... Ra5 {[%clk
0:00:25.9]} 33. a3 {[%clk 0:00:21.7]} 33... Re4 {[%clk 0:00:26.2]} 34. Re2
{[%clk 0:00:14.4]} 34... Rd5 {[%clk 0:00:26.6]} 35. Red2 {[%clk 0:00:09.9]}
35... a5 {[%clk 0:00:21.1]} 36. b4 {[%clk 0:00:09.4]} 36... Rc4 {[%clk
0:00:18.3]} 37. Nc5 {[%clk 0:00:03.7]} 37... Rxd2 {[%clk 0:00:17]} 38. Rxd2
{[%clk 0:00:04.6]} 38... Rxc3 {[%clk 0:00:17.6]} 39. Rd7 {[%clk 0:00:04]} 39...
Rc1+ {[%clk 0:00:12.6]} 40. Ke2 {[%clk 0:00:04]} 40... axb4 {[%clk 0:00:12.7]}
41. axb4 {[%clk 0:00:03.9]} 41... Rc2+ {[%clk 0:00:13.3]} 42. Ke3 {[%clk
0:00:03.4]} 42... Kc8 {[%clk 0:00:12.4]} 43. Rf7 {[%clk 0:00:02.7]} 43... Rc3+
{[%clk 0:00:12.1]} 44. Kd4 {[%clk 0:00:02.6]} 44... Rf3 {[%clk 0:00:11.3]} 45.
Nxb7 {[%clk 0:00:02.7]} 45... Nxf2 {[%clk 0:00:10.7]} 46. Nd6+ {[%clk
0:00:03.1]} 46... Kd8 {[%clk 0:00:11]} 47. b5 {[%clk 0:00:03.6]} 47... Ne4
{[%clk 0:00:05.4]} 48. Nxe4 {[%clk 0:00:02.6]} 48... fxe4 {[%clk 0:00:06.3]} 49.
Rh7 {[%clk 0:00:01.9]} 49... Rxg3 {[%clk 0:00:06.4]} 50. Kxe4 {[%clk 0:00:02]}
50... Rb3 {[%clk 0:00:06.5]} 51. Rxh5 {[%clk 0:00:02.3]} 51... g3 {[%clk
0:00:07.1]} 52. Rg5 {[%clk 0:00:02.7]} 52... Ke7 {[%clk 0:00:07.8]} 53. Kf4
{[%clk 0:00:03]} 53... Kf6 {[%clk 0:00:07]} 54. Rxg3 {[%clk 0:00:03.3]} 54...
Rxb5 {[%clk 0:00:06.4]} 55. Rc3 {[%clk 0:00:03.4]} 55... Rb4+ {[%clk 0:00:06.6]}
56. Kg3 {[%clk 0:00:03.8]} 56... Kg7 {[%clk 0:00:07.2]} 57. Rc7+ {[%clk
0:00:03.9]} 57... Kg6 {[%clk 0:00:07.2]} 58. Rc6+ {[%clk 0:00:04.4]} 58... Kf5
{[%clk 0:00:07.3]} 59. Rc5+ {[%clk 0:00:04.8]} 59... Kf6 {[%clk 0:00:07.9]} 60.
Rc6+ {[%clk 0:00:05.1]} 60... Kf7 {[%clk 0:00:08.3]} 61. Rc3 {[%clk 0:00:05]}
61... Ra4 {[%clk 0:00:08.3]} 62. Rf3+ {[%clk 0:00:05.5]} 62... Kg6 {[%clk
0:00:08.6]} 63. Re3 {[%clk 0:00:06.1]} 63... Kf5 {[%clk 0:00:08.3]} 64. Rc3
{[%clk 0:00:06.2]} 64... Rg4+ {[%clk 0:00:08.2]} 65. Kh3 {[%clk 0:00:06]} 65...
Ra4 {[%clk 0:00:09.1]} 66. Rf3+ {[%clk 0:00:05.8]} 66... Kg6 {[%clk 0:00:08.5]}
67. Rg3+ {[%clk 0:00:06.7]} 67... Kh5 {[%clk 0:00:08.7]} 68. Rg5+ {[%clk
0:00:07]} 68... Kh6 {[%clk 0:00:09.4]} 69. Rd5 {[%clk 0:00:07.2]} 69... Ra3+
{[%clk 0:00:09.5]} 70. Kg4 {[%clk 0:00:07.7]} 70... Ra4+ {[%clk 0:00:10.4]} 71.
Kg3 {[%clk 0:00:08.2]} 71... Ra3+ {[%clk 0:00:10.8]} 72. Kg4 {[%clk 0:00:08.7]}
72... Ra4+ {[%clk 0:00:11.7]} 73. Kg3 {[%clk 0:00:09.2]} 73... Ra3+ {[%clk
0:00:12.3]} 74. Kg4 {[%clk 0:00:09.6]} 1/2-1/2

[Event "Late-Titled-Tuesday-Blitz-August-29-2023"]
[Site "Chess.com"]
[Date "2023.08.29"]
[Round "3"]
[White "roxannyzoldyck"]
[Black "IMGC"]
[Result "0-1"]
[WhiteElo "2184"]
[BlackElo "2406"]
[TimeControl "180+1"]
[EndTime "14:29:31 PDT"]
[Termination "IMGC won on time"]

1. e4 {[%clk 0:03:00]} 1... e5 {[%clk 0:02:56.5]} 2. Nf3 {[%clk 0:02:59.2]} 2...
Nf6 {[%clk 0:02:56.1]} 3. Bc4 {[%clk 0:02:59.5]} 3... d6 {[%clk 0:02:53.5]} 4.
d3 {[%clk 0:02:58.8]} 4... Be7 {[%clk 0:02:52.8]} 5. c3 {[%clk 0:02:57.9]} 5...
O-O {[%clk 0:02:53.1]} 6. Nbd2 {[%clk 0:02:57.7]} 6... c6 {[%clk 0:02:52.7]} 7.
Bb3 {[%clk 0:02:55]} 7... h6 {[%clk 0:02:48.4]} 8. O-O {[%clk 0:02:48.9]} 8...
Nbd7 {[%clk 0:02:44.9]} 9. Re1 {[%clk 0:02:41.8]} 9... Nc5 {[%clk 0:02:42.8]}
10. Bc2 {[%clk 0:02:30.6]} 10... Ne6 {[%clk 0:02:34.9]} 11. Nf1 {[%clk
0:02:28.7]} 11... Re8 {[%clk 0:02:31.2]} 12. d4 {[%clk 0:02:24.6]} 12... Nd7
{[%clk 0:02:22.9]} 13. Ng3 {[%clk 0:02:16.8]} 13... Bf8 {[%clk 0:02:18.8]} 14.
Nf5 {[%clk 0:02:13.7]} 14... Kh7 {[%clk 0:02:16.3]} 15. d5 {[%clk 0:02:04.8]}
15... Nf4 {[%clk 0:02:05.1]} 16. Bxf4 {[%clk 0:02:04.2]} 16... exf4 {[%clk
0:02:06]} 17. dxc6 {[%clk 0:02:00]} 17... bxc6 {[%clk 0:01:58]} 18. Nxd6 {[%clk
0:01:53.5]} 18... Re6 {[%clk 0:01:42.1]} 19. e5+ {[%clk 0:01:46.5]} 19... Kg8
{[%clk 0:01:41.1]} 20. Bf5 {[%clk 0:01:42.1]} 20... Re7 {[%clk 0:01:38.7]} 21.
Qd2 {[%clk 0:01:29.8]} 21... Nxe5 {[%clk 0:01:23.2]} 22. Nxe5 {[%clk 0:01:12.5]}
22... Bxf5 {[%clk 0:01:22.6]} 23. Qxf4 {[%clk 0:01:05.4]} 23... Qxd6 {[%clk
0:01:03.5]} 24. Qxf5 {[%clk 0:01:05.2]} 24... Rae8 {[%clk 0:01:03.2]} 25. Nf3
{[%clk 0:00:54.7]} 25... Rxe1+ {[%clk 0:00:58]} 26. Rxe1 {[%clk 0:00:51.7]}
26... Rxe1+ {[%clk 0:00:58.5]} 27. Nxe1 {[%clk 0:00:52.6]} 27... Qd2 {[%clk
0:00:58.8]} 28. Qe4 {[%clk 0:00:45.3]} 28... Qxb2 {[%clk 0:00:56.9]} 29. Qxc6
{[%clk 0:00:44.2]} 29... Qxa2 {[%clk 0:00:56.3]} 30. h3 {[%clk 0:00:42.3]} 30...
a5 {[%clk 0:00:44.7]} 31. Nf3 {[%clk 0:00:40.5]} 31... a4 {[%clk 0:00:41.8]} 32.
Nd4 {[%clk 0:00:39.8]} 32... a3 {[%clk 0:00:40]} 33. Qe8 {[%clk 0:00:26.8]}
33... Qa1+ {[%clk 0:00:32.1]} 34. Kh2 {[%clk 0:00:27]} 34... Qxc3 {[%clk
0:00:32.4]} 35. Nf5 {[%clk 0:00:23.2]} 35... Qc7+ {[%clk 0:00:26]} 36. g3 {[%clk
0:00:23]} 36... a2 {[%clk 0:00:26.6]} 37. Qa8 {[%clk 0:00:20.5]} 37... g6 {[%clk
0:00:13.9]} 38. Nxh6+ {[%clk 0:00:18.7]} 38... Kg7 {[%clk 0:00:13]} 39. Ng4
{[%clk 0:00:18.8]} 39... Qc2 {[%clk 0:00:12]} 40. Kg2 {[%clk 0:00:12.7]} 40...
Qb2 {[%clk 0:00:11.6]} 41. Nf6 {[%clk 0:00:08.6]} 41... Kxf6 {[%clk 0:00:04.8]}
42. Qxf8 {[%clk 0:00:08.4]} 42... Qb7+ {[%clk 0:00:03.1]} 43. Kh2 {[%clk
0:00:05.1]} 43... Ke6 {[%clk 0:00:02.7]} 44. Qh8 {[%clk 0:00:04.9]} 44... Qa7
{[%clk 0:00:02.4]} 45. Qe8+ {[%clk 0:00:04.6]} 45... Kd5 {[%clk 0:00:02.8]} 46.
Qd8+ {[%clk 0:00:03.8]} 46... Kc4 {[%clk 0:00:03.1]} 47. Qc8+ {[%clk 0:00:03.7]}
47... Kb3 {[%clk 0:00:03.4]} 48. Qc1 {[%clk 0:00:01.7]} 48... Qa3 {[%clk
0:00:02.5]} 49. Qd1+ {[%clk 0:00:01.5]} 49... Kb4 {[%clk 0:00:02]} 50. Qa1
{[%clk 0:00:01.9]} 50... Qb3 {[%clk 0:00:02]} 51. Qd4+ {[%clk 0:00:02.4]} 51...
Ka3 {[%clk 0:00:02.9]} 52. Qa1 {[%clk 0:00:03.3]} 52... Qb2 {[%clk 0:00:03.1]}
53. Qe1 {[%clk 0:00:03.2]} 53... a1=Q {[%clk 0:00:04]} 54. Qa5+ {[%clk
0:00:04.1]} 54... Kb3 {[%clk 0:00:03.7]} 55. Qb6+ {[%clk 0:00:04.6]} 55... Kc2
{[%clk 0:00:04.5]} 56. Qe3 {[%clk 0:00:05.5]} 56... Kb1 {[%clk 0:00:05.3]} 57.
Qe2 {[%clk 0:00:06.2]} 57... Qxe2 {[%clk 0:00:04.4]} 58. h4 {[%clk 0:00:06.7]}
58... Qab2 {[%clk 0:00:05]} 59. Kh3 {[%clk 0:00:07.5]} 59... Qxf2 {[%clk
0:00:05.9]} 60. h5 {[%clk 0:00:07.2]} 60... Qg2+ {[%clk 0:00:06.8]} 61. Kg4
{[%clk 0:00:07.9]} 61... Qh2 {[%clk 0:00:07.1]} 0-1